[Event "Early-Titled-Tuesday-Blitz-March-19-2024"]
[Site "Chess.com"]
[Date "2024.03.19"]
[Round "9"]
[White "igorknyazev"]
[Black "Laico"]
[Result "0-1"]
[WhiteElo "2233"]
[BlackElo "2410"]
[TimeControl "180+1"]
[EndTime "9:43:13 PDT"]
[Termination "Laico won by resignation"]

1. e4 {[%clk 0:03:00.9]} 1... e6 {[%clk 0:03:00.1]} 2. d4 {[%clk 0:03:00.4]}
2... d5 {[%clk 0:03:00.7]} 3. exd5 {[%clk 0:03:00.3]} 3... exd5 {[%clk
0:03:01.6]} 4. c4 {[%clk 0:02:59.8]} 4... Nf6 {[%clk 0:03:01.1]} 5. Nc3 {[%clk
0:02:59.1]} 5... Bb4 {[%clk 0:03:01.7]} 6. Nf3 {[%clk 0:02:54.7]} 6... O-O
{[%clk 0:03:02.2]} 7. Bd2 {[%clk 0:02:54.1]} 7... Re8+ {[%clk 0:03:01]} 8. Be2
{[%clk 0:02:53.4]} 8... dxc4 {[%clk 0:02:59.3]} 9. O-O {[%clk 0:02:53.9]} 9...
Bxc3 {[%clk 0:02:59.1]} 10. bxc3 {[%clk 0:02:49.7]} 10... b5 {[%clk 0:02:59.2]}
11. Ne5 {[%clk 0:02:45.9]} 11... Bb7 {[%clk 0:02:53.9]} 12. a4 {[%clk
0:02:37.4]} 12... a6 {[%clk 0:02:51.9]} 13. axb5 {[%clk 0:02:35.1]} 13... axb5
{[%clk 0:02:52.8]} 14. Rxa8 {[%clk 0:02:33.7]} 14... Bxa8 {[%clk 0:02:53.7]} 15.
Bg5 {[%clk 0:02:33]} 15... Qd6 {[%clk 0:02:49.2]} 16. Bf3 {[%clk 0:02:27.2]}
16... Bxf3 {[%clk 0:02:47.5]} 17. Qxf3 {[%clk 0:02:27.5]} 17... Nbd7 {[%clk
0:02:42.1]} 18. Ng4 {[%clk 0:01:58.8]} 18... Ne4 {[%clk 0:02:27.5]} 19. Bf4
{[%clk 0:01:55.7]} 19... Qg6 {[%clk 0:02:15]} 20. Bxc7 {[%clk 0:01:43.5]} 20...
Nd2 {[%clk 0:02:14.6]} 21. Qd5 {[%clk 0:01:21.6]} 21... Qxg4 {[%clk 0:02:10.6]}
22. Ra1 {[%clk 0:01:18.1]} 22... Qe4 {[%clk 0:02:01.9]} 23. Qxe4 {[%clk
0:01:15.6]} 23... Nxe4 {[%clk 0:02:02.8]} 24. Re1 {[%clk 0:01:07.9]} 24... Ndf6
{[%clk 0:01:53.9]} 25. Ba5 {[%clk 0:01:03.8]} 25... Nd2 {[%clk 0:01:33]} 26.
Rxe8+ {[%clk 0:00:54]} 26... Nxe8 {[%clk 0:01:33.9]} 27. f3 {[%clk 0:00:52.7]}
27... Nf6 {[%clk 0:01:29.4]} 28. Kf2 {[%clk 0:00:45.8]} 28... Nd5 {[%clk
0:01:28.5]} 29. Kg3 {[%clk 0:00:44.7]} 29... Nb3 {[%clk 0:01:28]} 30. Bd8 {[%clk
0:00:36.8]} 30... f6 {[%clk 0:01:28.2]} 31. h4 {[%clk 0:00:35.1]} 31... Kf7
{[%clk 0:01:28.2]} 32. f4 {[%clk 0:00:34.9]} 32... Ke8 {[%clk 0:01:28.2]} 33.
Bxf6 {[%clk 0:00:34]} 33... gxf6 {[%clk 0:01:29.1]} 34. Kf3 {[%clk 0:00:34.5]}
34... Nxc3 {[%clk 0:01:29]} 0-1

[Event "Early-Titled-Tuesday-Blitz-March-19-2024"]
[Site "Chess.com"]
[Date "2024.03.19"]
[Round "9"]
[White "ZenBull"]
[Black "abelmat"]
[Result "0-1"]
[WhiteElo "2255"]
[BlackElo "2100"]
[TimeControl "180+1"]
[EndTime "9:43:24 PDT"]
[Termination "abelmat won by resignation"]

1. c4 {[%clk 0:03:00.9]} 1... Nf6 {[%clk 0:02:57.3]} 2. Nc3 {[%clk 0:03:00.3]}
2... e6 {[%clk 0:02:57.2]} 3. Nf3 {[%clk 0:02:57.5]} 3... d5 {[%clk 0:02:57.5]}
4. e3 {[%clk 0:02:56.1]} 4... Be7 {[%clk 0:02:56.8]} 5. b3 {[%clk 0:02:55]} 5...
O-O {[%clk 0:02:56.5]} 6. Bb2 {[%clk 0:02:54.7]} 6... b6 {[%clk 0:02:57]} 7. Qc2
{[%clk 0:02:54.9]} 7... Bb7 {[%clk 0:02:57.5]} 8. Be2 {[%clk 0:02:55.3]} 8...
Nbd7 {[%clk 0:02:58.1]} 9. O-O {[%clk 0:02:55.3]} 9... c5 {[%clk 0:02:58.7]} 10.
cxd5 {[%clk 0:02:54.8]} 10... Nxd5 {[%clk 0:02:58.2]} 11. Nxd5 {[%clk
0:02:50.7]} 11... Bxd5 {[%clk 0:02:56.5]} 12. Rac1 {[%clk 0:02:50]} 12... Bf6
{[%clk 0:02:51]} 13. Rfd1 {[%clk 0:02:48.2]} 13... Bxb2 {[%clk 0:02:44.7]} 14.
Qxb2 {[%clk 0:02:48.3]} 14... Qe7 {[%clk 0:02:43.4]} 15. d4 {[%clk 0:02:46.8]}
15... cxd4 {[%clk 0:02:41.4]} 16. Nxd4 {[%clk 0:02:46.3]} 16... Rac8 {[%clk
0:02:39.4]} 17. Ba6 {[%clk 0:02:44.3]} 17... Rxc1 {[%clk 0:02:24]} 18. Rxc1
{[%clk 0:02:45.2]} 18... Nc5 {[%clk 0:02:23.9]} 19. Be2 {[%clk 0:02:43.6]} 19...
a5 {[%clk 0:02:19.4]} 20. Bf3 {[%clk 0:02:19.7]} 20... Nd3 {[%clk 0:02:18.2]}
21. Qb1 {[%clk 0:02:14.2]} 21... Nxc1 {[%clk 0:02:15.5]} 22. Qxc1 {[%clk
0:02:15.1]} 22... Bxf3 {[%clk 0:02:14.6]} 23. Nxf3 {[%clk 0:02:16]} 23... Rd8
{[%clk 0:02:10.8]} 24. h3 {[%clk 0:02:15.5]} 24... Qd6 {[%clk 0:02:06.2]} 25.
Qc4 {[%clk 0:02:09.4]} 25... h6 {[%clk 0:01:59.4]} 26. Qb5 {[%clk 0:02:04.9]}
26... Rc8 {[%clk 0:01:53.1]} 27. g3 {[%clk 0:02:00.5]} 27... Qc6 {[%clk
0:01:44.8]} 28. Qe2 {[%clk 0:01:58.5]} 28... Qc2 {[%clk 0:01:41.5]} 29. Qb5
{[%clk 0:01:55.9]} 29... Qe4 {[%clk 0:01:18.2]} 30. Qe2 {[%clk 0:01:46]} 30...
Rc1+ {[%clk 0:01:08.4]} 31. Kh2 {[%clk 0:01:46]} 31... Rc2 {[%clk 0:01:04.4]}
32. Nd2 {[%clk 0:01:24.6]} 32... Qd5 {[%clk 0:00:55.3]} 33. Qa6 {[%clk
0:01:16.5]} 33... Rxd2 {[%clk 0:00:45.3]} 0-1

[Event "Early-Titled-Tuesday-Blitz-March-19-2024"]
[Site "Chess.com"]
[Date "2024.03.19"]
[Round "9"]
[White "Dyadya81"]
[Black "scarabee43"]
[Result "0-1"]
[WhiteElo "2940"]
[BlackElo "2852"]
[TimeControl "180+1"]
[EndTime "9:43:26 PDT"]
[Termination "scarabee43 won by resignation"]

1. e4 {[%clk 0:03:00.9]} 1... c5 {[%clk 0:02:59.8]} 2. Nc3 {[%clk 0:03:00.4]}
2... Nc6 {[%clk 0:02:59.6]} 3. Bb5 {[%clk 0:03:01]} 3... Nd4 {[%clk 0:02:59.8]}
4. Bc4 {[%clk 0:03:01.5]} 4... e6 {[%clk 0:02:59]} 5. Nge2 {[%clk 0:03:01.9]}
5... a6 {[%clk 0:02:56]} 6. a4 {[%clk 0:03:00.9]} 6... Nc6 {[%clk 0:02:52.3]} 7.
O-O {[%clk 0:03:00.3]} 7... Nf6 {[%clk 0:02:50.7]} 8. d4 {[%clk 0:02:59]} 8...
cxd4 {[%clk 0:02:50.7]} 9. Nxd4 {[%clk 0:02:59.9]} 9... Qc7 {[%clk 0:02:49.7]}
10. Nxc6 {[%clk 0:02:59.4]} 10... bxc6 {[%clk 0:02:45.6]} 11. Qf3 {[%clk
0:02:51.7]} 11... d5 {[%clk 0:02:41.3]} 12. Bd3 {[%clk 0:02:49.1]} 12... Bd6
{[%clk 0:02:37.9]} 13. Kh1 {[%clk 0:02:44.1]} 13... O-O {[%clk 0:02:35]} 14. Bg5
{[%clk 0:02:28.5]} 14... Be5 {[%clk 0:02:24.2]} 15. Rae1 {[%clk 0:02:24]} 15...
h6 {[%clk 0:02:20.1]} 16. Bh4 {[%clk 0:02:12.7]} 16... Nd7 {[%clk 0:02:10.7]}
17. Qh5 {[%clk 0:01:42.3]} 17... Rb8 {[%clk 0:01:50.8]} 18. exd5 {[%clk
0:01:36]} 18... cxd5 {[%clk 0:01:50.6]} 19. Nd1 {[%clk 0:01:27.9]} 19... Rb4
{[%clk 0:01:44.4]} 20. b3 {[%clk 0:00:41.3]} 20... Bd6 {[%clk 0:01:40.6]} 21.
Ne3 {[%clk 0:00:35.2]} 21... Nc5 {[%clk 0:01:38.6]} 22. Ng4 {[%clk 0:00:20]}
22... Nxd3 {[%clk 0:01:36.4]} 23. cxd3 {[%clk 0:00:20.9]} 23... e5 {[%clk
0:01:29.3]} 24. Nxe5 {[%clk 0:00:17.5]} 24... Bxe5 {[%clk 0:01:29.1]} 25. Rxe5
{[%clk 0:00:17.3]} 25... Rxh4 {[%clk 0:01:28.4]} 26. Qxh4 {[%clk 0:00:15.6]}
26... Qxe5 {[%clk 0:01:28.5]} 27. d4 {[%clk 0:00:15.3]} 27... Qe4 {[%clk
0:01:28.3]} 28. Qxe4 {[%clk 0:00:15.3]} 28... dxe4 {[%clk 0:01:28.8]} 29. Re1
{[%clk 0:00:13.8]} 29... Bb7 {[%clk 0:01:29]} 30. Rc1 {[%clk 0:00:13.5]} 30...
Bd5 {[%clk 0:01:28.9]} 31. b4 {[%clk 0:00:13]} 31... Rb8 {[%clk 0:01:29.6]} 32.
Rc5 {[%clk 0:00:13]} 32... Rxb4 {[%clk 0:01:29.3]} 33. h4 {[%clk 0:00:13.7]}
33... Rxd4 {[%clk 0:01:29.1]} 0-1

[Event "Early-Titled-Tuesday-Blitz-March-19-2024"]
[Site "Chess.com"]
[Date "2024.03.19"]
[Round "9"]
[White "atalz0"]
[Black "Winner_7777"]
[Result "0-1"]
[WhiteElo "2366"]
[BlackElo "2614"]
[TimeControl "180+1"]
[EndTime "9:43:34 PDT"]
[Termination "Winner_7777 won on time"]

1. d4 {[%clk 0:03:00.9]} 1... d5 {[%clk 0:02:59.3]} 2. c4 {[%clk 0:03:01.1]}
2... e6 {[%clk 0:03:00]} 3. Nc3 {[%clk 0:03:00.1]} 3... c6 {[%clk 0:03:00.6]} 4.
e3 {[%clk 0:03:00.1]} 4... Bd6 {[%clk 0:02:59.8]} 5. b3 {[%clk 0:02:57.3]} 5...
f5 {[%clk 0:02:59.8]} 6. Bd3 {[%clk 0:02:33.5]} 6... Nf6 {[%clk 0:02:59.4]} 7.
Nge2 {[%clk 0:02:33.3]} 7... O-O {[%clk 0:02:59.5]} 8. Bb2 {[%clk 0:02:32.4]}
8... Ne4 {[%clk 0:02:59.5]} 9. O-O {[%clk 0:02:06.2]} 9... Nd7 {[%clk
0:02:56.8]} 10. g3 {[%clk 0:01:09.1]} 10... Ndf6 {[%clk 0:02:54.3]} 11. f3
{[%clk 0:01:08.4]} 11... Ng5 {[%clk 0:02:54.7]} 12. Kg2 {[%clk 0:01:06.8]} 12...
Qe8 {[%clk 0:02:52.9]} 13. h4 {[%clk 0:01:04.9]} 13... Nf7 {[%clk 0:02:51.6]}
14. Qd2 {[%clk 0:01:00]} 14... Bd7 {[%clk 0:02:49.9]} 15. e4 {[%clk 0:00:57.4]}
15... fxe4 {[%clk 0:02:36.6]} 16. fxe4 {[%clk 0:00:58.3]} 16... dxc4 {[%clk
0:02:35.7]} 17. Bxc4 {[%clk 0:00:50]} 17... b5 {[%clk 0:02:27.4]} 18. Bd3 {[%clk
0:00:49.4]} 18... e5 {[%clk 0:02:27.8]} 19. d5 {[%clk 0:00:32.7]} 19... b4
{[%clk 0:02:21.5]} 20. dxc6 {[%clk 0:00:19.8]} 20... Bxc6 {[%clk 0:02:22.4]} 21.
Nd1 {[%clk 0:00:12.7]} 21... Nxe4 {[%clk 0:02:21.4]} 22. Bxe4 {[%clk 0:00:12.5]}
22... Bxe4+ {[%clk 0:02:22.3]} 23. Kh2 {[%clk 0:00:12.8]} 23... Qe6 {[%clk
0:02:11.2]} 24. Nf2 {[%clk 0:00:12.4]} 24... Bb7 {[%clk 0:02:03.7]} 25. Rae1
{[%clk 0:00:12.9]} 25... Nh6 {[%clk 0:02:01.9]} 26. Nf4 {[%clk 0:00:11.3]} 26...
Qd7 {[%clk 0:02:00]} 27. Nh5 {[%clk 0:00:08.7]} 27... Rxf2+ {[%clk 0:01:43.6]}
28. Rxf2 {[%clk 0:00:09.2]} 28... Ng4+ {[%clk 0:01:44.3]} 29. Kg1 {[%clk
0:00:08.7]} 29... Qc6 {[%clk 0:01:42.9]} 30. Kf1 {[%clk 0:00:03.5]} 30... Nxf2
{[%clk 0:01:40.2]} 31. Kxf2 {[%clk 0:00:01.4]} 31... Qg2+ {[%clk 0:01:34.8]} 32.
Ke3 {[%clk 0:00:01.7]} 32... Bc5+ {[%clk 0:01:35.4]} 0-1

[Event "Early-Titled-Tuesday-Blitz-March-19-2024"]
[Site "Chess.com"]
[Date "2024.03.19"]
[Round "9"]
[White "GreenPeach24"]
[Black "Szparu"]
[Result "0-1"]
[WhiteElo "2559"]
[BlackElo "2786"]
[TimeControl "180+1"]
[EndTime "9:43:36 PDT"]
[Termination "Szparu won on time"]

1. e4 {[%clk 0:03:00.9]} 1... c5 {[%clk 0:02:58.3]} 2. Nf3 {[%clk 0:02:57.8]}
2... a6 {[%clk 0:02:58.4]} 3. c3 {[%clk 0:02:57.3]} 3... e6 {[%clk 0:02:58.3]}
4. d4 {[%clk 0:02:56.5]} 4... d5 {[%clk 0:02:59]} 5. exd5 {[%clk 0:02:56]} 5...
exd5 {[%clk 0:02:59.3]} 6. dxc5 {[%clk 0:02:54.5]} 6... Bxc5 {[%clk 0:02:58.9]}
7. Bd3 {[%clk 0:02:54.5]} 7... Nf6 {[%clk 0:02:56.7]} 8. O-O {[%clk 0:02:54.2]}
8... O-O {[%clk 0:02:56.3]} 9. h3 {[%clk 0:02:54.2]} 9... h6 {[%clk 0:02:56.4]}
10. Nbd2 {[%clk 0:02:48.1]} 10... Nc6 {[%clk 0:02:56.5]} 11. Nb3 {[%clk
0:02:47.9]} 11... Bd6 {[%clk 0:02:56.4]} 12. Nbd4 {[%clk 0:02:48.1]} 12... Re8
{[%clk 0:02:55.2]} 13. Nf5 {[%clk 0:02:44.6]} 13... Bc7 {[%clk 0:02:52.7]} 14.
N3d4 {[%clk 0:02:32.9]} 14... Ne4 {[%clk 0:02:48.9]} 15. Qg4 {[%clk 0:02:27.2]}
15... Qf6 {[%clk 0:02:48.8]} 16. Bxh6 {[%clk 0:01:32.5]} 16... Nxd4 {[%clk
0:02:48.1]} 17. Qxg7+ {[%clk 0:01:16.8]} 17... Qxg7 {[%clk 0:02:48]} 18. Nxg7
{[%clk 0:01:17.7]} 18... Re6 {[%clk 0:02:31.3]} 19. Nxe6 {[%clk 0:00:57.9]}
19... Nxe6 {[%clk 0:02:32.2]} 20. Rad1 {[%clk 0:00:49.4]} 20... Nf4 {[%clk
0:02:30.8]} 21. Bxf4 {[%clk 0:00:48.2]} 21... Bxf4 {[%clk 0:02:31.7]} 22. g3
{[%clk 0:00:45.6]} 22... Bc7 {[%clk 0:02:28.5]} 23. Kg2 {[%clk 0:00:45.4]} 23...
Bf5 {[%clk 0:02:26.2]} 24. Rfe1 {[%clk 0:00:43.6]} 24... Bg6 {[%clk 0:02:24.8]}
25. Bb1 {[%clk 0:00:42.4]} 25... Rd8 {[%clk 0:02:21.8]} 26. f4 {[%clk
0:00:37.4]} 26... f5 {[%clk 0:02:16.4]} 27. Kf3 {[%clk 0:00:32]} 27... Bf7
{[%clk 0:02:14.7]} 28. g4 {[%clk 0:00:28.1]} 28... Kg7 {[%clk 0:02:14.5]} 29.
Bc2 {[%clk 0:00:23.3]} 29... Kf6 {[%clk 0:02:14.2]} 30. Bb3 {[%clk 0:00:23]}
30... Rh8 {[%clk 0:02:13.8]} 31. Rh1 {[%clk 0:00:17.2]} 31... Rd8 {[%clk
0:02:13.6]} 32. g5+ {[%clk 0:00:10.2]} 32... Ke6 {[%clk 0:02:12.6]} 33. Ke3
{[%clk 0:00:10.7]} 33... Bb6+ {[%clk 0:02:12.2]} 34. Kd3 {[%clk 0:00:06.9]}
34... Nf2+ {[%clk 0:02:12.3]} 35. Kc2 {[%clk 0:00:06.5]} 35... Nxd1 {[%clk
0:02:11.9]} 36. Rxd1 {[%clk 0:00:05.7]} 36... Bh5 {[%clk 0:02:11.9]} 37. Re1+
{[%clk 0:00:05.5]} 37... Kd6 {[%clk 0:02:06.1]} 38. Re5 {[%clk 0:00:05.2]} 38...
d4 {[%clk 0:02:06.7]} 39. cxd4 {[%clk 0:00:02.9]} 39... Bf3 {[%clk 0:02:06]} 40.
Kd2 {[%clk 0:00:02.5]} 40... Bxd4 {[%clk 0:02:05.9]} 41. Re6+ {[%clk 0:00:01.9]}
41... Kc5 {[%clk 0:02:06.5]} 42. Rg6 {[%clk 0:00:02.3]} 42... Bxb2+ {[%clk
0:02:04]} 43. Kc2 {[%clk 0:00:02.8]} 43... Bd4 {[%clk 0:02:02.4]} 44. Rh6 {[%clk
0:00:03]} 44... Be4+ {[%clk 0:02:02.7]} 45. Kc1 {[%clk 0:00:02.3]} 45... Kb4
{[%clk 0:02:00.6]} 0-1

[Event "Early-Titled-Tuesday-Blitz-March-19-2024"]
[Site "Chess.com"]
[Date "2024.03.19"]
[Round "9"]
[White "HajiyevKanan"]
[Black "RianKapriaga"]
[Result "1-0"]
[WhiteElo "2532"]
[BlackElo "2353"]
[TimeControl "180+1"]
[EndTime "9:43:36 PDT"]
[Termination "HajiyevKanan won by resignation"]

1. d4 {[%clk 0:02:45]} 1... Nf6 {[%clk 0:02:59]} 2. c4 {[%clk 0:02:44.5]} 2...
e6 {[%clk 0:02:58.7]} 3. Nf3 {[%clk 0:02:44.7]} 3... d5 {[%clk 0:02:57.9]} 4.
Nc3 {[%clk 0:02:44.8]} 4... Be7 {[%clk 0:02:56.3]} 5. Bf4 {[%clk 0:02:43.8]}
5... O-O {[%clk 0:02:53.6]} 6. e3 {[%clk 0:02:44.3]} 6... Nbd7 {[%clk
0:02:51.9]} 7. cxd5 {[%clk 0:02:37]} 7... Nxd5 {[%clk 0:02:48.4]} 8. Nxd5 {[%clk
0:02:29.9]} 8... exd5 {[%clk 0:02:49.3]} 9. Bd3 {[%clk 0:02:30.4]} 9... c5
{[%clk 0:02:48.6]} 10. dxc5 {[%clk 0:02:26.7]} 10... Nxc5 {[%clk 0:02:46.1]} 11.
O-O {[%clk 0:02:27.3]} 11... Nxd3 {[%clk 0:02:40]} 12. Qxd3 {[%clk 0:02:28.2]}
12... Be6 {[%clk 0:02:34.5]} 13. Rac1 {[%clk 0:02:26.3]} 13... Qb6 {[%clk
0:02:30.8]} 14. Qd4 {[%clk 0:02:22.9]} 14... Qa6 {[%clk 0:02:26.9]} 15. Be5
{[%clk 0:02:06.8]} 15... f6 {[%clk 0:02:23.6]} 16. Bf4 {[%clk 0:02:04.9]} 16...
Rac8 {[%clk 0:02:11.5]} 17. a3 {[%clk 0:02:05.1]} 17... b6 {[%clk 0:01:58.7]}
18. h3 {[%clk 0:02:00]} 18... Rfd8 {[%clk 0:01:53.4]} 19. Qd2 {[%clk 0:01:56.7]}
19... Bf5 {[%clk 0:01:47.2]} 20. Nd4 {[%clk 0:01:56.4]} 20... Be4 {[%clk
0:01:40.6]} 21. Ne6 {[%clk 0:01:56.6]} 21... Re8 {[%clk 0:01:33.6]} 22. Nc7
{[%clk 0:01:55.8]} 22... Qb7 {[%clk 0:01:20.9]} 23. Nxe8 {[%clk 0:01:55.8]}
23... Rxe8 {[%clk 0:01:20.5]} 24. f3 {[%clk 0:01:50.1]} 24... Bg6 {[%clk
0:01:19]} 25. Rc7 {[%clk 0:01:49.9]} 25... Qa8 {[%clk 0:01:17.9]} 26. Rfc1
{[%clk 0:01:38.1]} 26... Bc5 {[%clk 0:01:15.6]} 27. b4 {[%clk 0:01:34.8]} 27...
Bf8 {[%clk 0:01:12.4]} 28. Rd7 {[%clk 0:01:34]} 28... Rd8 {[%clk 0:00:59.9]} 29.
Rcc7 {[%clk 0:01:15.3]} 29... Rxd7 {[%clk 0:00:59.1]} 30. Rxd7 {[%clk
0:01:16.2]} 30... Bf7 {[%clk 0:00:59.8]} 31. Qc3 {[%clk 0:01:10.6]} 31... a5
{[%clk 0:00:58.5]} 32. Qc7 {[%clk 0:01:04.8]} 32... Qe8 {[%clk 0:00:55.8]} 33.
Rd8 {[%clk 0:01:00.3]} 33... Qe6 {[%clk 0:00:53.3]} 34. Qd6 {[%clk 0:00:58.8]}
34... h6 {[%clk 0:00:48.3]} 35. Rxf8+ {[%clk 0:00:56.6]} 1-0

[Event "Early-Titled-Tuesday-Blitz-March-19-2024"]
[Site "Chess.com"]
[Date "2024.03.19"]
[Round "9"]
[White "Shield12"]
[Black "Alen_Yeremyann"]
[Result "1-0"]
[WhiteElo "2950"]
[BlackElo "2820"]
[TimeControl "180+1"]
[EndTime "9:43:40 PDT"]
[Termination "Shield12 won by resignation"]

1. e4 {[%clk 0:03:00.9]} 1... c5 {[%clk 0:02:56.8]} 2. Nf3 {[%clk 0:03:00.9]}
2... Nc6 {[%clk 0:02:57.3]} 3. Bb5 {[%clk 0:03:01.3]} 3... e6 {[%clk 0:02:56.5]}
4. O-O {[%clk 0:03:00.8]} 4... Nge7 {[%clk 0:02:56.6]} 5. Re1 {[%clk 0:03:01.5]}
5... a6 {[%clk 0:02:57.3]} 6. Bf1 {[%clk 0:03:01.9]} 6... d5 {[%clk 0:02:57.9]}
7. d3 {[%clk 0:03:02.6]} 7... dxe4 {[%clk 0:02:57]} 8. dxe4 {[%clk 0:03:02.7]}
8... Qxd1 {[%clk 0:02:57.2]} 9. Rxd1 {[%clk 0:03:03.6]} 9... Ng6 {[%clk
0:02:57.7]} 10. a4 {[%clk 0:03:02.9]} 10... Be7 {[%clk 0:02:55.6]} 11. Na3
{[%clk 0:03:02.8]} 11... O-O {[%clk 0:02:56.3]} 12. Nc4 {[%clk 0:03:02.9]} 12...
Rb8 {[%clk 0:02:53.1]} 13. a5 {[%clk 0:03:01]} 13... e5 {[%clk 0:02:47.2]} 14.
c3 {[%clk 0:02:59.8]} 14... Be6 {[%clk 0:02:45.3]} 15. Ne3 {[%clk 0:02:54.5]}
15... Rfd8 {[%clk 0:02:42.9]} 16. Nd5 {[%clk 0:02:53.6]} 16... f6 {[%clk
0:02:36]} 17. Be3 {[%clk 0:02:52.8]} 17... Bf8 {[%clk 0:02:33.5]} 18. Nd2 {[%clk
0:02:50.7]} 18... Nge7 {[%clk 0:02:28.8]} 19. Nb6 {[%clk 0:02:46.4]} 19... Nc8
{[%clk 0:02:23.1]} 20. Bc4 {[%clk 0:02:39.5]} 20... Bf7 {[%clk 0:02:20]} 21.
Bxf7+ {[%clk 0:02:35.2]} 21... Kxf7 {[%clk 0:02:20.9]} 22. Nd5 {[%clk
0:02:35.4]} 22... N8e7 {[%clk 0:02:12.1]} 23. Nxe7 {[%clk 0:02:21.9]} 23... Bxe7
{[%clk 0:02:10.7]} 24. Kf1 {[%clk 0:02:21.2]} 24... Ke6 {[%clk 0:02:10.7]} 25.
Ke2 {[%clk 0:02:20.7]} 25... g6 {[%clk 0:02:08.1]} 26. f3 {[%clk 0:02:20.4]}
26... f5 {[%clk 0:02:08.6]} 27. Nc4 {[%clk 0:02:19.3]} 27... Rxd1 {[%clk
0:02:06.1]} 28. Rxd1 {[%clk 0:02:20.2]} 28... Rd8 {[%clk 0:02:06.5]} 29. Ra1
{[%clk 0:02:19.1]} 29... f4 {[%clk 0:02:03.6]} 30. Bf2 {[%clk 0:02:18.6]} 30...
g5 {[%clk 0:02:04.4]} 31. h3 {[%clk 0:02:14.7]} 31... h5 {[%clk 0:02:04.6]} 32.
b3 {[%clk 0:02:09.6]} 32... Rd7 {[%clk 0:02:00.8]} 33. Nb2 {[%clk 0:02:08.8]}
33... Rd8 {[%clk 0:01:52.2]} 34. Nd3 {[%clk 0:02:08.5]} 34... Rc8 {[%clk
0:01:42.7]} 35. Bxc5 {[%clk 0:02:04.1]} 35... g4 {[%clk 0:01:31.2]} 36. hxg4
{[%clk 0:01:54.7]} 36... hxg4 {[%clk 0:01:31.2]} 37. b4 {[%clk 0:01:53.7]} 37...
Rh8 {[%clk 0:01:26.8]} 38. Bxe7 {[%clk 0:01:49.9]} 38... Kxe7 {[%clk 0:01:24.1]}
39. fxg4 {[%clk 0:01:50.1]} 39... Kf6 {[%clk 0:01:21.5]} 40. Nc5 {[%clk
0:01:48.3]} 40... Rg8 {[%clk 0:01:15]} 41. Nxb7 {[%clk 0:01:33.4]} 41... Rxg4
{[%clk 0:01:13.7]} 42. Kf2 {[%clk 0:01:33.9]} 42... Rg3 {[%clk 0:01:14]} 43. Rc1
{[%clk 0:01:33.1]} 43... Ne7 {[%clk 0:01:12]} 44. Nc5 {[%clk 0:01:27.6]} 44...
Ng6 {[%clk 0:01:12.5]} 45. Rc2 {[%clk 0:01:19.7]} 45... Nh4 {[%clk 0:01:11.8]}
46. Kf1 {[%clk 0:01:20.2]} 46... Re3 {[%clk 0:01:01.2]} 47. b5 {[%clk
0:01:20.2]} 47... axb5 {[%clk 0:00:52.6]} 48. a6 {[%clk 0:01:20.3]} 48... Rg3
{[%clk 0:00:53.5]} 49. a7 {[%clk 0:01:19.7]} 49... Rg8 {[%clk 0:00:54.4]} 50.
Nd7+ {[%clk 0:01:19.9]} 50... Ke7 {[%clk 0:00:54.2]} 51. Nb8 {[%clk 0:01:20.8]}
1-0

[Event "Early-Titled-Tuesday-Blitz-March-19-2024"]
[Site "Chess.com"]
[Date "2024.03.19"]
[Round "9"]
[White "ActorXu"]
[Black "Iskusnyh"]
[Result "1-0"]
[WhiteElo "2834"]
[BlackElo "2640"]
[TimeControl "180+1"]
[EndTime "9:43:44 PDT"]
[Termination "ActorXu won by resignation"]

1. e4 {[%clk 0:03:00.9]} 1... e6 {[%clk 0:02:58.2]} 2. d3 {[%clk 0:03:00.5]}
2... c5 {[%clk 0:02:56.6]} 3. g3 {[%clk 0:02:58.8]} 3... Nc6 {[%clk 0:02:55.6]}
4. Bg2 {[%clk 0:02:58.9]} 4... g6 {[%clk 0:02:55]} 5. f4 {[%clk 0:02:58.4]} 5...
Bg7 {[%clk 0:02:55.2]} 6. Nf3 {[%clk 0:02:58.9]} 6... d6 {[%clk 0:02:52.4]} 7.
O-O {[%clk 0:02:59.2]} 7... Nge7 {[%clk 0:02:51.5]} 8. Nc3 {[%clk 0:02:59.1]}
8... O-O {[%clk 0:02:49.5]} 9. Be3 {[%clk 0:02:59.7]} 9... b6 {[%clk 0:02:44.9]}
10. d4 {[%clk 0:02:57.9]} 10... d5 {[%clk 0:02:42.3]} 11. exd5 {[%clk
0:02:51.8]} 11... Nf5 {[%clk 0:02:40.8]} 12. Bf2 {[%clk 0:02:48.2]} 12... Ncxd4
{[%clk 0:02:39.5]} 13. dxe6 {[%clk 0:02:46.4]} 13... Bxe6 {[%clk 0:02:31.8]} 14.
Ng5 {[%clk 0:02:45.1]} 14... Bc4 {[%clk 0:02:17.5]} 15. Re1 {[%clk 0:02:43.4]}
15... Rc8 {[%clk 0:01:56.1]} 16. Nge4 {[%clk 0:02:26.4]} 16... Rc7 {[%clk
0:01:46.7]} 17. Nd2 {[%clk 0:02:05.8]} 17... Be6 {[%clk 0:01:43.2]} 18. Nce4
{[%clk 0:01:58.4]} 18... Rd7 {[%clk 0:01:40.6]} 19. c3 {[%clk 0:01:53.9]} 19...
Nc6 {[%clk 0:01:37.3]} 20. Qe2 {[%clk 0:01:54.5]} 20... Bd5 {[%clk 0:01:36.2]}
21. Nc4 {[%clk 0:01:47.8]} 21... Qc7 {[%clk 0:01:27.3]} 22. Rad1 {[%clk
0:01:43.8]} 22... Rfd8 {[%clk 0:01:25]} 23. h3 {[%clk 0:01:39.1]} 23... b5
{[%clk 0:01:08.4]} 24. Ne3 {[%clk 0:01:33.7]} 24... Nxe3 {[%clk 0:01:07.7]} 25.
Qxe3 {[%clk 0:01:31.2]} 25... c4 {[%clk 0:00:51.4]} 26. g4 {[%clk 0:01:10.1]}
26... Qb7 {[%clk 0:00:44.4]} 27. Nc5 {[%clk 0:01:07.8]} 27... Qc7 {[%clk
0:00:41.9]} 28. Nxd7 {[%clk 0:01:05.9]} 28... Bxg2 {[%clk 0:00:40.8]} 29. Kxg2
{[%clk 0:01:04.4]} 29... Rxd7 {[%clk 0:00:37.5]} 30. Qe8+ {[%clk 0:01:04.1]} 1-0